bitfinex/quotes_SOLUSD_20241202
["timestamp","ask_amount","ask_price","bid_price","bid_amount"]
[1733149257419,0.12549,225.62,225.54,4.433]
[1733149257630,0.25375212,225.65,225.55,0.88430061]
[1733149258422,0.12549,225.64,225.55,0.88430061]
[1733149259245,0.25098,225.64,225.55,13.91015703]
[1733149259418,0.12549,225.64,225.55,13.91015703]
[1733149259625,0.5302357,225.68,225.55,13.91015703]
[1733149259626,20.5302357,225.68,225.59,13.02585642]
[1733149259822,20.5302357,225.68,225.59,13.90995147]
[1733149260042,20.5302357,225.68,225.58,4.433]
[1733149260043,0.50473212,225.67,225.58,4.433]
[1733149260226,0.50473212,225.67,225.56,13.90995097]
[1733149260424,0.50473212,225.67,225.56,0.88409455]
[1733149260633,0.50473212,225.67,225.55,16.379]
[1733149260840,0.12549,225.66,225.53,13.02585642]
[1733149261031,0.12549,225.66,225.54,5.31727137]
[1733149261720,0.12549,225.66,225.54,18.34312779]
[1733149262044,0.12549,225.66,225.55,13.02585642]
[1733149262232,0.12549,225.67,225.57,13.02585642]
[1733149262451,0.25098,225.67,225.58,13.90995867]
[1733149262769,0.12549,225.67,225.58,13.90995867]
[1733149263425,0.12549,225.67,225.58,0.88410225]
[1733149263741,0.12549,225.67,225.57,0.88410631]
[1733149264045,0.25098,225.67,225.57,0.88410631]
[1733149264424,0.25098,225.67,225.57,13.90996273]
[1733149264628,20.5302357,225.68,225.57,13.90996273]
[1733149264836,0.5302357,225.68,225.59,13.02585642]
[1733149265033,0.5302357,225.68,225.6,0.88398877]
[1733149265922,0.5302357,225.68,225.6,5.31698877]
[1733149267321,0.5302357,225.68,225.61,13.02585642]
[1733149267627,0.5302357,225.68,225.63,13.02585642]
[1733149267933,0.5302357,225.68,225.64,0.88382639]
[1733149268531,0.5302357,225.68,225.67,13.02585642]
[1733149268728,0.5302357,225.68,225.67,37.68639882]
[1733149269644,0.5302357,225.68,225.65,13.02585642]
[1733149269947,0.5302357,225.68,225.66,0.8837651]
[1733149271152,0.5302357,225.68,225.66,13.90962152]
[1733149271345,0.5302357,225.68,225.67,13.02585642]
[1733149271647,0.5302357,225.68,225.67,13.90960421]
[1733149272250,0.5302357,225.68,225.64,4.435]
[1733149272423,0.5302357,225.68,225.63,0.88375076]
[1733149272625,0.5302357,225.68,225.59,16.5786]
[1733149272844,0.25098,225.67,225.54,35.20015642]
[1733149273025,0.25098,225.67,225.54,36.0842872]
[1733149273026,0.50473212,225.67,225.54,36.0842872]
[1733149273229,0.25098,225.67,225.55,13.02585642]
[1733149273559,0.25098,225.67,225.56,18.34495351]
[1733149273755,0.25098,225.67,225.56,5.31909709]
[1733149274250,0.12549,225.67,225.57,13.02585642]
[1733149274434,0.12549,225.67,225.58,0.88407181]
[1733149276226,0.25098,225.65,225.54,15.7588]
[1733149276429,0.25098,225.63,225.54,15.7588]
[1733149276637,0.25098,225.64,225.55,0.8843133]
[1733149276843,0.25098,225.64,225.55,13.91016972]
[1733149277050,6.6989357,225.68,225.57,13.02585642]
[1733149277231,6.6989357,225.68,225.58,0.88404708]
[1733149278046,0.12549,225.67,225.58,0.88404708]
[1733149280245,0.37647,225.67,225.58,13.9099035]
[1733149280433,0.37647,225.67,225.58,0.88404708]
[1733149280639,0.37647,225.67,225.57,0.88413709]
[1733149281644,0.12549,225.64,225.55,0.88417047]
[1733149281851,0.12549,225.63,225.54,15.7588]
[1733149282764,0.37647,225.66,225.54,16.64303744]
[1733149283141,0.12549,225.66,225.57,13.02585642]
[1733149283349,0.5302357,225.68,225.58,13.90995514]
[1733149283671,0.5302357,225.68,225.63,13.02585642]
[1733149283864,0.5302357,225.68,225.61,13.90972645]
[1733149284160,0.5302357,225.68,225.58,13.02585642]
[1733149284355,0.12549,225.67,225.57,13.90977916]
[1733149284939,0.12549,225.66,225.57,0.88392274]
[1733149285139,0.12549,225.66,225.57,13.90977916]
[1733149285741,0.12549,225.66,225.58,4.435]
[1733149286264,0.12549,225.66,225.59,0.8841129]
[1733149287033,0.12549,225.66,225.57,0.88413679]
[1733149287768,0.50473212,225.67,225.57,0.88413679]
[1733149288060,0.50473212,225.67,225.49,16.1692]
[1733149288061,0.12549,225.62,225.49,19.19505642]
[1733149288262,0.12549,225.61,225.5,0.88435081]
[1733149288859,0.12549,225.61,225.5,13.91020723]
[1733149289169,0.25098,225.62,225.5,13.91020723]
[1733149289463,0.25098,225.62,225.5,0.88435081]
[1733149290280,0.25098,225.6,225.48,4.435]
[1733149290564,0.50473212,225.6,225.48,4.435]
[1733149293364,0.12549,225.59,225.48,4.435]
[1733149293750,0.25098,225.59,225.48,4.435]
[1733149294253,0.12549,225.58,225.47,5.31937271]
[1733149294458,0.12549,225.57,225.47,4.435]
[1733149295263,0.12549,225.57,225.43,0.19137515]
[1733149295571,20.25098,225.55,225.43,0.19137515]
[1733149295747,0.25098,225.53,225.43,0.19137515]
[1733149296856,0.50473212,225.53,225.43,0.19137515]
[1733149297470,0.25098,225.5,225.43,0.19137515]
[1733149297775,0.50473212,225.5,225.43,0.19137515]
[1733149297945,0.12549,225.49,225.43,0.19137515]
[1733149298144,0.25098,225.49,225.43,0.19137515]
[1733149299280,0.25098,225.44,225.43,0.19137515]
[1733149299442,0.63022212,225.44,225.43,0.19137515]
[1733149299641,0.37647,225.44,225.43,0.19137515]
[1733149299864,0.63022212,225.44,225.43,0.19137515]
[1733149300372,7.20522212,225.44,225.43,0.19137515]
[1733149302148,30.98210612,225.44,225.43,7.515e-05]
[1733149303780,20.25098,225.4,225.27,13.91096418]
[1733149304064,0.25375212,225.39,225.27,13.91096418]
[1733149304553,0.25375212,225.39,225.29,13.02585642]
[1733149304963,0.50473212,225.4,225.29,13.02585642]
[1733149305676,0.50473212,225.4,225.28,13.02585642]
[1733149305869,1.61383212,225.4,225.28,13.02585642]
[1733149306251,1.61383212,225.4,225.3,13.02585642]
[1733149306784,20.0,225.41,225.31,13.02585642]
[1733149307358,0.25375212,225.4,225.3,13.02585642]
[1733149307556,0.25375212,225.4,225.29,13.02585642]
[1733149308558,0.37647,225.39,225.27,13.02585642]
[1733149309682,0.37647,225.39,225.28,13.02585642]
[1733149311459,0.37647,225.39,225.3,13.02585642]
[1733149311660,0.37647,225.39,225.29,13.02585642]
[1733149313059,0.37647,225.39,225.3,13.02585642]
[1733149314086,0.37647,225.39,225.29,13.02585642]
[1733149314587,0.37647,225.39,225.28,13.02585642]
[1733149316383,0.37647,225.39,225.29,13.02585642]
[1733149316580,0.37647,225.39,225.28,13.02585642]
[1733149316763,1.1092,225.38,225.27,13.02585642]
[1733149317084,1.1092,225.38,225.28,13.91113753]
[1733149318503,0.25375212,225.37,225.27,13.02585642]
[1733149318683,0.25375212,225.37,225.25,19.24545642]
[1733149319287,1.36028,225.36,225.22,28.40465642]
[1733149319490,0.25098,225.34,225.22,28.40465642]
[1733149319867,0.25098,225.34,225.22,15.3788]
[1733149320401,0.25098,225.34,225.23,13.02585642]
[1733149320563,0.25375212,225.37,225.29,13.02585642]
[1733149320763,0.12549,225.39,225.3,13.91115365]
[1733149321070,0.12549,225.38,225.29,13.02585642]
[1733149322191,0.12549,225.38,225.3,0.8852853]
[1733149322859,0.25098,225.37,225.27,13.02585642]
[1733149323063,0.50473212,225.37,225.26,13.02585642]
[1733149323960,0.25098,225.37,225.27,13.02585642]
[1733149324161,0.25098,225.37,225.28,0.88529877]
[1733149324494,0.25098,225.37,225.28,13.91115519]
[1733149324696,0.25098,225.37,225.28,0.88529877]
[1733149324904,0.25098,225.37,225.26,13.02585642]
[1733149325088,0.25375212,225.36,225.26,13.02585642]
[1733149325284,0.12549,225.35,225.25,13.02585642]
[1733149325592,0.25098,225.35,225.24,13.91119136]
[1733149325902,24.027864,225.35,225.3,5.0]
[1733149326082,0.25098,225.33,225.3,5.0]
[1733149326410,20.37647,225.31,225.3,5.0]
[1733149326701,20.63022212,225.31,225.3,5.0]
[1733149327287,21.73972212,225.31,225.3,5.0]
[1733149328212,21.48597,225.31,225.3,5.0]
[1733149329809,0.25375212,225.34,225.3,5.0]
[1733149330005,0.37924212,225.34,225.3,5.0]
[1733149332804,0.25375212,225.34,225.3,5.0]
[1733149333018,20.25375212,225.37,225.3,5.0]
[1733149333700,1.109,225.41,225.31,13.91118023]
[1733149333887,0.50473212,225.4,225.3,5.0]
[1733149334983,0.12549,225.39,225.3,5.0]
[1733149336512,0.12549,225.39,225.3,18.02585642]
[1733149336727,1.109,225.41,225.32,13.02585642]
[1733149337189,0.25375212,225.42,225.32,13.02585642]
[1733149338213,20.0,225.44,225.33,13.91097482]
[1733149338510,0.25375212,225.43,225.33,13.91097482]
[1733149338688,0.50473212,225.44,225.33,13.91097482]
[1733149339003,0.37924212,225.44,225.33,0.8851184]
[1733149339185,0.37924212,225.44,225.31,13.02585642]
[1733149339523,0.25098,225.43,225.32,0.88513862]
[1733149339820,0.25098,225.42,225.33,13.02585642]
[1733149340017,0.25098,225.42,225.34,0.88507094]
[1733149340312,0.50473212,225.42,225.34,0.88507094]
[1733149340696,0.25098,225.42,225.34,0.88507094]
[1733149341016,0.12549,225.43,225.34,0.88507094]
[1733149341216,0.25098,225.43,225.34,0.88507094]
[1733149341588,0.25375212,225.42,225.31,13.91093683]
[1733149341797,0.25375212,225.42,225.31,0.88508041]
[1733149342216,0.12549,225.42,225.31,13.91093683]
[1733149343310,0.12549,225.42,225.32,13.02585642]
[1733149343616,0.12549,225.42,225.33,19.05645642]
[1733149343617,0.25375212,225.42,225.33,19.05645642]
[1733149343909,0.25375212,225.47,225.35,13.02585642]
[1733149344113,0.25375212,225.47,225.34,0.88501852]
[1733149344114,0.12549,225.46,225.34,13.91087494]
[1733149344417,1.23429,225.46,225.34,0.88501852]
[1733149344592,0.25375212,225.45,225.34,0.88501852]
[1733149345121,0.25375212,225.45,225.34,13.91087494]
[1733149346095,0.25375212,225.45,225.35,28.12435642]
[1733149346509,0.12549,225.45,225.35,28.12435642]
[1733149346890,0.25375212,225.47,225.35,28.12435642]
[1733149347216,135.2,225.56,225.42,13.02585642]
[1733149347418,1.1084,225.54,225.42,13.02585642]
[1733149347624,0.25375212,225.53,225.42,13.02585642]
[1733149347824,0.25098,225.52,225.43,0.88472792]
[1733149348325,0.12549,225.52,225.43,0.88472792]
[1733149349095,0.25375212,225.53,225.43,0.88472792]
[1733149349402,0.25375212,225.53,225.44,13.02585642]
[1733149350013,0.12549,225.53,225.44,13.02585642]
[1733149350399,0.12549,225.53,225.45,0.88468758]
[1733149350812,0.25098,225.53,225.45,0.88468758]
[1733149351122,0.50473212,225.53,225.45,0.88468758]
[1733149351322,0.12549,225.52,225.45,0.88468758]
[1733149351912,0.12549,225.52,225.43,0.88469283]
[1733149352111,20.0,225.49,225.38,13.91055524]
[1733149352319,0.25375212,225.48,225.38,13.91055524]
[1733149352706,20.0,225.49,225.38,13.91055524]
[1733149352903,0.25098,225.48,225.38,0.88469882]
[1733149353102,0.25098,225.48,225.35,15.98336303]
[1733149353103,0.12549,225.47,225.35,15.98336303]
[1733149353626,0.25098,225.46,225.35,15.98336303]
[1733149353804,0.12549,225.45,225.35,15.98336303]
[1733149354123,0.25098,225.43,225.35,15.0985]
[1733149354308,0.50473212,225.43,225.35,15.0985]
[1733149354620,0.25098,225.43,225.35,15.0985]
[1733149355000,0.12549,225.41,225.3,16.3227]
[1733149356106,0.25098,225.41,225.3,16.3227]
[1733149356303,0.37647,225.39,225.3,16.3227]
[1733149356601,0.63022212,225.39,225.3,16.3227]
[1733149360206,0.25098,225.37,225.27,6.0469]
[1733149360516,0.50473212,225.37,225.27,6.0469]
[1733149361114,20.50473212,225.37,225.24,15.7445]
[1733149361809,0.25098,225.33,225.24,15.7445]
[1733149362107,0.50473212,225.33,225.21,6.4918]
[1733149362325,21.61423212,225.33,225.18,15.7445]
[1733149363228,0.25098,225.28,225.18,15.7445]
[1733149363527,0.50473212,225.28,225.18,15.7445]
[1733149364105,0.12549,225.27,225.18,15.7445]
[1733149364304,0.25098,225.27,225.18,15.7445]
[1733149365123,0.12549,225.26,225.18,15.7445]
[1733149365329,0.25098,225.25,225.18,15.7445]
[1733149366822,0.25098,225.28,225.18,15.7445]
[1733149369222,0.12549,225.27,225.18,15.7445]
[1733149369615,0.12549,225.27,225.14,0.88578903]
[1733149369817,0.12549,225.27,225.14,13.91164545]
[1733149370009,0.12549,225.27,225.16,13.02585642]
[1733149371623,0.12549,225.27,225.15,13.02585642]
[1733149372101,0.25098,225.26,225.14,0.88578903]
[1733149372302,0.25098,225.23,225.12,13.91162199]
[1733149372731,0.25098,225.23,225.13,13.02585642]
[1733149373226,20.0,225.24,225.14,13.02585642]
[1733149373423,20.0,225.24,225.14,13.91176415]
[1733149373605,0.12549,225.23,225.14,13.91176415]
[1733149374240,0.25098,225.23,225.14,0.88590773]
[1733149374417,0.25098,225.23,225.12,13.02585642]
[1733149375129,0.25098,225.23,225.11,34.57931795]
[1733149375724,0.12549,225.21,225.11,16.2326]
[1733149376732,0.12549,225.22,225.11,16.2326]
[1733149377225,0.25098,225.21,225.11,16.2326]
[1733149378232,0.12549,225.2,225.08,13.02585642]
[1733149378621,0.12549,225.2,225.07,17.46085642]
[1733149378842,0.25098,225.19,225.07,17.46085642]
[1733149379325,0.25098,225.19,225.07,4.435]
[1733149380337,0.25098,225.19,225.07,17.46085642]
[1733149380539,0.12549,225.18,225.08,13.02585642]
[1733149380743,0.12549,225.18,225.07,4.435]
[1733149381068,141.3604,225.27,225.14,13.02585642]
[1733149381258,7.2701,225.27,225.15,13.02585642]
[1733149381418,0.25098,225.26,225.14,13.02585642]
[1733149381744,0.12549,225.26,225.14,13.02585642]
[1733149382141,0.25098,225.26,225.14,13.02585642]
[1733149382338,0.12549,225.23,225.14,13.02585642]
[1733149382638,0.25098,225.23,225.11,13.02585642]
[1733149382815,20.25098,225.23,225.1,13.02585642]
[1733149383014,20.25098,225.23,225.11,13.91183845]
[1733149383435,0.12549,225.23,225.12,13.02585642]
[1733149384160,8.3799,225.27,225.15,13.02585642]
[1733149384161,0.12549,225.26,225.15,13.02585642]
[1733149384322,0.37647,225.26,225.15,13.02585642]
[1733149384638,0.37647,225.26,225.11,17.46085642]
[1733149384836,0.37647,225.26,225.12,23.776884]
[1733149385033,0.25098,225.24,225.11,18.34674578]
[1733149385222,0.12549,225.23,225.11,18.34674578]
[1733149386047,20.25098,225.24,225.12,13.02585642]
[1733149386220,20.25098,225.24,225.13,13.91170054]
[1733149387722,20.12549,225.24,225.14,13.02585642]
[1733149387928,20.12549,225.24,225.06,35.92691548]
[1733149387929,1.1097,225.28,225.18,13.02585642]
[1733149388129,1.1095,225.31,225.19,0.88566296]
[1733149388825,0.12549,225.3,225.19,0.88566296]
[1733149389030,1.1095,225.31,225.16,28.02985642]
[1733149389031,1.1095,225.31,225.16,15.004]
[1733149389244,0.12549,225.28,225.16,15.004]
[1733149389752,0.25098,225.28,225.16,15.004]
[1733149390826,0.25098,225.28,225.13,13.02585642]
[1733149391937,0.12549,225.24,225.13,13.02585642]
[1733149392324,0.12549,225.24,225.14,0.88583672]
[1733149392555,0.12549,225.24,225.12,36.80274042]
[1733149393050,0.12549,225.24,225.12,13.02585642]
[1733149393242,0.25098,225.24,225.12,13.02585642]
[1733149393841,20.25098,225.24,225.11,15.8183]
[1733149395055,0.25098,225.22,225.11,15.8183]
[1733149395239,0.12549,225.24,225.13,13.02585642]
[1733149395421,0.12549,225.24,225.14,0.88584448]
[1733149395736,0.25098,225.24,225.14,0.88584448]
[1733149396134,8.82695937,225.33,225.15,13.02585642]
[1733149396135,1.1096,225.29,225.15,13.02585642]
[1733149396437,1.1096,225.29,225.16,0.88570467]
[1733149397050,0.12549,225.28,225.16,0.88570467]
[1733149397638,0.25098,225.28,225.16,0.88570467]
[1733149400166,0.25098,225.28,225.16,0.88570467]
[1733149401443,0.25098,225.28,225.15,17.46085642]
[1733149402056,0.25098,225.28,225.13,0.88569463]
[1733149402057,0.25098,225.28,225.14,13.02585642]
[1733149402264,0.25098,225.28,225.14,23.776884]
[1733149402448,0.25098,225.26,225.11,28.84415642]
[1733149402653,0.25098,225.26,225.11,15.8183]
[1733149402840,0.25098,225.26,225.11,29.73009873]
[1733149403039,0.25098,225.26,225.13,13.02585642]
[1733149403249,0.25098,225.26,225.12,4.435]
[1733149403250,20.0,225.29,225.18,13.02585642]
[1733149403590,135.2,225.37,225.24,8.33251271]
[1733149403746,6.2262,225.39,225.27,8.33251271]
[1733149403945,6.2262,225.39,225.28,9.21783673]
[1733149404156,0.12549,225.38,225.28,9.21783673]
[1733149404363,0.12549,225.38,225.29,8.33251271]
[1733149404540,6.2262,225.39,225.29,8.33251271]
[1733149404740,6.2262,225.39,225.28,9.21783673]
[1733149405053,6.2262,225.39,225.29,4.435]
[1733149405375,20.0,225.36,225.28,5.32032402]
[1733149405663,0.12549,225.38,225.28,0.88532402]
[1733149406855,20.0,225.36,225.28,0.88532402]
[1733149407265,20.0,225.36,225.28,13.90208143]
[1733149409142,21.109,225.42,225.3,13.01675741]
[1733149409351,20.0,225.42,225.34,13.01675741]
[1733149409542,20.0,225.42,225.32,13.01675741]
[1733149409871,0.12549,225.44,225.32,13.01675741]
[1733149410073,6.4018,225.45,225.32,13.01675741]
[1733149410364,0.12549,225.44,225.33,0.88513312]
[1733149410567,0.25098,225.44,225.33,0.88513312]
[1733149410768,6.4018,225.45,225.25,6.6622]
[1733149410769,24.027864,225.42,225.29,13.01675741]
[1733149411087,20.25098,225.42,225.3,13.90205746]
[1733149411262,20.25098,225.42,225.31,13.01675741]
[1733149411446,20.25098,225.42,225.32,0.88517029]
[1733149411951,0.25098,225.4,225.28,13.01675741]
[1733149412153,0.25098,225.4,225.3,13.01675741]
[1733149412353,0.25098,225.4,225.31,0.88522689]
[1733149413343,0.25098,225.4,225.29,0.88526101]
[1733149413542,0.12549,225.38,225.29,0.88526101]
[1733149414561,0.12549,225.38,225.29,13.90201842]
[1733149414952,20.12549,225.41,225.31,13.01675741]
[1733149415151,20.12549,225.41,225.32,0.88520226]
[1733149415675,0.12549,225.4,225.32,0.88520226]
[1733149416042,0.12549,225.4,225.3,13.01675741]
[1733149416043,0.12549,225.4,225.3,0.88521053]
[1733149417362,0.12549,225.4,225.27,13.90197283]
[1733149417942,1.1091,225.39,225.27,13.90197283]
[1733149418143,0.12549,225.38,225.27,13.90197283]
[1733149419964,0.12549,225.36,225.26,15.1756]
[1733149421273,0.12549,225.36,225.24,13.90205167]
[1733149421769,20.0,225.33,225.22,0.88538892]
[1733149421966,0.12549,225.32,225.21,15.6451]
[1733149423069,1.23499,225.32,225.21,15.6451]
[1733149423448,1.23499,225.32,225.23,13.01675741]
[1733149423665,20.0,225.33,225.26,13.01675741]
[1733149424346,20.0,225.33,225.25,13.01675741]
[1733149425174,20.0,225.33,225.24,13.9022777]
[1733149428269,20.0,225.33,225.24,0.88552029]
[1733149428455,20.0,225.33,225.22,13.90222772]
[1733149429353,20.0,225.33,225.22,0.88547031]
[1733149430959,20.0,225.33,225.22,13.90222772]
[1733149433052,20.0,225.33,225.23,13.01675741]
[1733149433264,20.0,225.33,225.24,0.88547963]
[1733149435482,0.12549,225.32,225.24,0.88547963]
[1733149435668,1.36048,225.32,225.22,0.88551753]
[1733149435975,1.36048,225.32,225.2,13.90235296]
[1733149436179,1.36048,225.32,225.17,13.90236005]
[1733149436473,1.36048,225.32,225.18,13.01675741]
[1733149436685,20.0,225.33,225.25,13.01675741]
[1733149436984,1.1091,225.39,225.28,13.01675741]
[1733149437157,6.2178,225.41,225.31,13.01675741]
[1733149437357,6.2178,225.41,225.29,0.88527183]
[1733149437358,6.2178,225.41,225.33,13.01675741]
[1733149437964,6.2178,225.41,225.32,13.90191078]
[1733149438488,6.2178,225.41,225.32,0.88515337]
[1733149438662,6.2178,225.41,225.32,13.90191078]
[1733149439957,6.2178,225.41,225.32,0.88515337]
[1733149440191,6.2178,225.41,225.3,13.01675741]
[1733149440988,6.2178,225.41,225.31,13.90193293]
[1733149441366,6.2178,225.41,225.32,13.01675741]
[1733149441771,6.2178,225.41,225.31,13.01675741]
[1733149442586,20.0,225.44,225.34,13.01675741]
[1733149442788,7.2809,225.47,225.36,13.01675741]
[1733149442963,0.12549,225.46,225.36,13.01675741]
[1733149443696,0.12549,225.46,225.35,13.90176669]
[1733149443984,20.0,225.44,225.35,13.90176669]
[1733149444185,20.0,225.44,225.36,13.01675741]
[1733149444375,6.1721,225.47,225.37,13.90167269]
[1733149444874,6.1721,225.47,225.37,0.88491528]
[1733149445076,0.12549,225.46,225.37,0.88491528]
[1733149445286,0.12549,225.46,225.34,29.43495741]
[1733149445686,0.25098,225.46,225.34,16.4182]
[1733149445886,20.0,225.44,225.34,16.4182]
[1733149446185,20.0,225.44,225.33,13.90182579]
[1733149446590,0.12549,225.43,225.33,13.90182579]
[1733149446969,0.12549,225.43,225.33,13.01675741]
[1733149447583,0.12549,225.43,225.32,13.01675741]
[1733149447792,0.25098,225.43,225.29,29.62465741]
[1733149448088,0.12549,225.41,225.29,16.6079]
[1733149448273,0.25098,225.41,225.29,16.6079]
[1733149448679,0.25098,225.41,225.29,29.62465741]
[1733149449286,0.25098,225.41,225.3,13.01675741]
[1733149451286,0.25098,225.41,225.31,13.01675741]
[1733149451494,0.25098,225.41,225.31,13.9019897]
[1733149451693,0.12549,225.42,225.33,13.01675741]
[1733149452070,24.027864,225.43,225.33,13.01675741]
[1733149452392,20.0,225.4,225.33,13.01675741]
[1733149452769,0.12549,225.44,225.34,13.01675741]
[1733149452967,0.25098,225.44,225.34,13.01675741]
[1733149453173,0.12549,225.44,225.33,13.01675741]
[1733149453798,0.12549,225.44,225.32,13.01675741]
[1733149453980,20.12549,225.44,225.32,13.01675741]
[1733149454376,0.12549,225.43,225.3,13.01675741]
[1733149454596,0.12549,225.43,225.31,13.01675741]
[1733149454773,0.12549,225.43,225.32,13.01675741]
[1733149454976,0.12549,225.43,225.33,13.01675741]
[1733149456894,20.12549,225.44,225.33,13.01675741]
[1733149458996,20.12549,225.44,225.34,13.01675741]
[1733149459294,6.1721,225.47,225.39,13.01675741]
[1733149459478,1.1086,225.51,225.39,13.01675741]
[1733149459677,0.12549,225.5,225.4,0.88486232]
[1733149460369,1.1086,225.51,225.41,13.01675741]
[1733149460575,20.0,225.5,225.41,13.01675741]
[1733149460996,6.3342,225.53,225.46,13.01675741]
[1733149461196,6.3342,225.53,225.45,13.01675741]
[1733149461395,1.1083,225.57,225.46,0.88467634]
[1733149461611,6.3342,225.58,225.47,13.01675741]
[1733149461982,0.12549,225.57,225.48,13.90130833]
[1733149462597,6.3342,225.58,225.48,0.88455092]
[1733149462793,20.0,225.55,225.45,13.01675741]
[1733149463181,20.0,225.55,225.42,0.88459071]
[1733149463182,0.25098,225.54,225.42,13.01675741]
[1733149463499,0.25098,225.54,225.4,0.88458331]
[1733149463500,0.25098,225.54,225.4,13.90134072]
[1733149463689,0.12549,225.52,225.4,13.90134072]
[1733149463993,0.25098,225.52,225.4,0.88458331]
[1733149464185,20.0,225.49,225.39,15.8039]
[1733149468377,20.0,225.49,225.39,28.82065741]
[1733149469077,23.902374,225.54,225.43,13.01675741]
[1733149469278,1.1084,225.55,225.44,13.90145926]
[1733149469598,0.12549,225.54,225.44,13.90145926]
[1733149470595,0.25098,225.54,225.44,13.90145926]
[1733149472478,0.25098,225.54,225.43,13.01675741]
[1733149472680,0.25098,225.54,225.42,13.01675741]
[1733149473100,24.027864,225.54,225.41,13.01675741]
[1733149473304,0.12549,225.5,225.39,28.82065741]
[1733149473499,0.12549,225.5,225.4,0.884832]
[1733149473675,0.12549,225.5,225.4,13.90158941]
[1733149474301,0.12549,225.5,225.4,0.884832]
[1733149475502,20.0,225.51,225.41,13.01675741]
[1733149475711,0.12549,225.56,225.44,13.01675741]
[1733149475883,1.1083,225.57,225.46,13.01675741]
[1733149476084,1.1083,225.57,225.47,0.88460863]
[1733149476802,0.12549,225.56,225.47,0.88460863]
[1733149476986,0.12549,225.56,225.45,13.01675741]
[1733149477605,20.0,225.55,225.44,13.01675741]
[1733149477814,20.0,225.55,225.43,13.01675741]
[1733149478197,20.0,225.55,225.44,0.8846802]
[1733149479080,0.25098,225.54,225.44,0.8846802]
[1733149479287,20.0,225.51,225.4,13.90144041]
[1733149479583,0.25098,225.5,225.37,13.01675741]
[1733149480011,0.25098,225.5,225.38,13.01675741]
[1733149480387,0.25098,225.5,225.39,0.88486692]
[1733149481894,20.0,225.46,225.35,13.9016497]
[1733149482214,20.0,225.46,225.36,13.01675741]
[1733149483416,20.0,225.46,225.34,22.428]
[1733149483417,7.6411,225.49,225.4,13.01675741]
[1733149483798,7.6411,225.49,225.39,13.01675741]
[1733149484612,7.6411,225.49,225.37,13.90162435]
[1733149485992,7.6411,225.49,225.38,4.435]
[1733149486797,20.0,225.46,225.38,4.435]
[1733149489302,20.0,225.46,225.37,0.88486694]
[1733149490530,21.1088,225.46,225.34,29.01045741]
[1733149491220,21.1088,225.46,225.35,13.01675741]
[1733149493397,21.1088,225.46,225.37,13.01675741]
[1733149493597,21.1088,225.46,225.36,17.45175741]
[1733149494322,21.1088,225.46,225.37,13.01675741]
[1733149494521,21.1088,225.46,225.36,17.45175741]
[1733149496420,21.1088,225.46,225.35,17.45175741]
[1733149497629,21.1088,225.46,225.36,17.45175741]
[1733149499321,21.1088,225.46,225.35,17.45175741]
[1733149499707,21.1088,225.46,225.36,4.435]
[1733149500230,21.1088,225.46,225.36,12.75998641]
[1733149500437,6.5325,225.49,225.36,12.75998641]
[1733149500438,6.5325,225.49,225.41,8.32498641]
[1733149500733,1.1086,225.5,225.41,8.32498641]
[1733149500932,1.1085,225.53,225.45,8.32498641]
[1733149501308,0.12549,225.53,225.44,8.32498641]
[1733149501618,6.2205,225.54,225.42,9.20980646]
[1733149501813,0.12549,225.53,225.42,9.20980646]
[1733149502013,6.2205,225.54,225.42,9.20980646]
[1733149502248,6.2205,225.54,225.43,8.32498641]
[1733149502537,6.2205,225.54,225.44,9.20963555]
[1733149502740,1.1083,225.56,225.44,9.20963555]
[1733149502911,0.12549,225.55,225.44,9.20963555]
[1733149503314,6.1498,225.59,225.46,8.32498641]
[1733149503515,6.1498,225.59,225.47,9.20953507]
[1733149503814,6.1498,225.59,225.48,4.435]
[1733149506337,23.902374,225.64,225.5,12.99275782]
[1733149506934,0.12549,225.64,225.49,18.31222567]
[1733149507232,1.108,225.63,225.49,18.31222567]
[1733149507527,0.25098,225.62,225.49,5.31946785]
[1733149507945,20.25098,225.62,225.49,5.31946785]
[1733149508127,20.25098,225.62,225.49,18.31222567]
[1733149509141,20.25098,225.62,225.49,5.31946785]
[1733149511226,20.0,225.58,225.45,12.99275782]